[Event "Late-Titled-Tuesday-Blitz-April-30-2024"]
[Site "Chess.com"]
[Date "2024.04.30"]
[Round "1"]
[White "VD_coach"]
[Black "FairChess_on_YouTube"]
[Result "0-1"]
[WhiteElo "2523"]
[BlackElo "3097"]
[TimeControl "180+1"]
[EndTime "14:07:24 PDT"]
[Termination "FairChess_on_YouTube won by resignation"]

1. d4 {[%clk 0:02:57]} 1... d5 {[%clk 0:02:59]} 2. c4 {[%clk 0:02:54.9]} 2... e6
{[%clk 0:02:59.2]} 3. Nf3 {[%clk 0:02:54.6]} 3... a6 {[%clk 0:02:59]} 4. cxd5
{[%clk 0:02:51.9]} 4... exd5 {[%clk 0:02:59.9]} 5. Nc3 {[%clk 0:02:52]} 5... c6
{[%clk 0:02:59.2]} 6. Bf4 {[%clk 0:02:49.8]} 6... Bd6 {[%clk 0:02:58.6]} 7. Bxd6
{[%clk 0:02:49]} 7... Qxd6 {[%clk 0:02:59.5]} 8. e3 {[%clk 0:02:49.3]} 8... Ne7
{[%clk 0:02:58.2]} 9. Bd3 {[%clk 0:02:49.4]} 9... O-O {[%clk 0:02:57.7]} 10. O-O
{[%clk 0:02:45.8]} 10... Bf5 {[%clk 0:02:54.1]} 11. Bxf5 {[%clk 0:02:40.2]}
11... Nxf5 {[%clk 0:02:55]} 12. Qd3 {[%clk 0:02:40.8]} 12... Ne7 {[%clk
0:02:44.9]} 13. b4 {[%clk 0:02:39.2]} 13... Nd7 {[%clk 0:02:44.6]} 14. a4 {[%clk
0:02:38.2]} 14... Nb6 {[%clk 0:02:40.2]} 15. a5 {[%clk 0:02:08.3]} 15... Nd7
{[%clk 0:02:37.1]} 16. Na4 {[%clk 0:02:00.1]} 16... Ng6 {[%clk 0:02:32.6]} 17.
Nc5 {[%clk 0:01:59.1]} 17... Qc7 {[%clk 0:02:31.1]} 18. Qf5 {[%clk 0:01:49.7]}
18... Nf6 {[%clk 0:02:29.5]} 19. Ne5 {[%clk 0:01:47]} 19... Rae8 {[%clk
0:02:27.3]} 20. Nxg6 {[%clk 0:01:46.7]} 20... fxg6 {[%clk 0:02:24.1]} 21. Qh3
{[%clk 0:01:45.5]} 21... Rf7 {[%clk 0:02:19.5]} 22. Rab1 {[%clk 0:01:33]} 22...
h5 {[%clk 0:02:19.1]} 23. Ne6 {[%clk 0:01:28]} 23... Qd7 {[%clk 0:02:09.9]} 24.
Ng5 {[%clk 0:01:27.9]} 24... Qxh3 {[%clk 0:02:09.3]} 25. Nxh3 {[%clk 0:01:28.4]}
25... Ne4 {[%clk 0:02:09.1]} 26. Nf4 {[%clk 0:01:21.9]} 26... Kh7 {[%clk
0:02:01.5]} 27. Rb2 {[%clk 0:01:17.2]} 27... g5 {[%clk 0:02:01]} 28. Nd3 {[%clk
0:01:17.4]} 28... g4 {[%clk 0:02:01.3]} 29. Ne5 {[%clk 0:01:17.5]} 29... Rf5
{[%clk 0:02:01.2]} 30. f3 {[%clk 0:01:16]} 30... gxf3 {[%clk 0:01:56.8]} 31.
gxf3 {[%clk 0:01:16.9]} 31... Nd6 {[%clk 0:01:56.6]} 32. Kf2 {[%clk 0:01:11]}
32... g5 {[%clk 0:01:54.5]} 33. Ke2 {[%clk 0:01:08.3]} 33... Kh6 {[%clk
0:01:52.1]} 34. Rc2 {[%clk 0:01:01.4]} 34... Rfxe5 {[%clk 0:01:45.7]} 35. dxe5
{[%clk 0:01:01.2]} 35... Rxe5 {[%clk 0:01:46.6]} 36. Kd3 {[%clk 0:00:57.8]}
36... Nf5 {[%clk 0:01:46.1]} 37. e4 {[%clk 0:00:53.9]} 37... Nd6 {[%clk
0:01:45.9]} 38. Re1 {[%clk 0:00:47.7]} 38... g4 {[%clk 0:01:41.6]} 39. fxg4
{[%clk 0:00:44.4]} 39... dxe4+ {[%clk 0:01:39.4]} 40. Kc3 {[%clk 0:00:39.4]}
40... hxg4 {[%clk 0:01:37.9]} 41. Rd2 {[%clk 0:00:37.4]} 41... Re6 {[%clk
0:01:35.7]} 42. Red1 {[%clk 0:00:34.3]} 42... Nf5 {[%clk 0:01:31.1]} 43. Rd7
{[%clk 0:00:29.4]} 43... Kg5 {[%clk 0:01:30.2]} 44. Rxb7 {[%clk 0:00:27.7]}
44... e3 {[%clk 0:01:28.9]} 45. Rf7 {[%clk 0:00:25.6]} 45... Ne7 {[%clk
0:01:23.7]} 46. Kd3 {[%clk 0:00:20.9]} 46... Nd5 {[%clk 0:01:23.8]} 47. Ke2
{[%clk 0:00:20]} 47... Nc3+ {[%clk 0:01:22.4]} 48. Ke1 {[%clk 0:00:19.1]} 48...
Nxd1 {[%clk 0:01:20.7]} 49. Kxd1 {[%clk 0:00:20]} 49... Rh6 {[%clk 0:00:57.5]}
50. Rc7 {[%clk 0:00:12.2]} 50... Rxh2 {[%clk 0:00:54.9]} 51. Rxc6 {[%clk
0:00:11.9]} 51... g3 {[%clk 0:00:55.4]} 52. Rc8 {[%clk 0:00:09.4]} 52... g2
{[%clk 0:00:55.8]} 53. Rg8+ {[%clk 0:00:09.2]} 53... Kf4 {[%clk 0:00:56.2]} 54.
b5 {[%clk 0:00:05.5]} 54... Rh1+ {[%clk 0:00:55.9]} 55. Ke2 {[%clk 0:00:05.7]}
55... g1=Q {[%clk 0:00:56.8]} 0-1

[Event "Late-Titled-Tuesday-Blitz-April-30-2024"]
[Site "Chess.com"]
[Date "2024.04.30"]
[Round "1"]
[White "JiangoFett"]
[Black "gmcorrales"]
[Result "0-1"]
[WhiteElo "2458"]
[BlackElo "2823"]
[TimeControl "180+1"]
[EndTime "14:07:25 PDT"]
[Termination "gmcorrales won by resignation"]

1. c4 {[%clk 0:03:00.4]} 1... c5 {[%clk 0:02:58.8]} 2. Nf3 {[%clk 0:02:59.9]}
2... Nc6 {[%clk 0:02:59.4]} 3. Nc3 {[%clk 0:02:59.2]} 3... g6 {[%clk 0:02:57.9]}
4. g3 {[%clk 0:02:59.3]} 4... Bg7 {[%clk 0:02:54.1]} 5. Bg2 {[%clk 0:02:59]}
5... d6 {[%clk 0:02:42.3]} 6. O-O {[%clk 0:02:58.6]} 6... Bf5 {[%clk 0:02:36.4]}
7. Qb3 {[%clk 0:02:34.5]} 7... Qd7 {[%clk 0:02:34.3]} 8. d3 {[%clk 0:02:25.2]}
8... Rc8 {[%clk 0:02:30.3]} 9. Re1 {[%clk 0:02:07]} 9... b6 {[%clk 0:02:29.3]}
10. Be3 {[%clk 0:01:52.7]} 10... h6 {[%clk 0:02:25.1]} 11. Rad1 {[%clk
0:01:49.7]} 11... g5 {[%clk 0:02:21.3]} 12. Qa4 {[%clk 0:01:29.1]} 12... Nf6
{[%clk 0:02:02.7]} 13. Bc1 {[%clk 0:01:22]} 13... O-O {[%clk 0:02:01.4]} 14. h4
{[%clk 0:01:19.1]} 14... g4 {[%clk 0:02:00.9]} 15. Nd2 {[%clk 0:01:16.3]} 15...
Nd4 {[%clk 0:01:55.1]} 16. Qxd7 {[%clk 0:01:12.9]} 16... Bxd7 {[%clk 0:01:56]}
17. e3 {[%clk 0:01:09.3]} 17... Nc2 {[%clk 0:01:54.5]} 18. Re2 {[%clk 0:01:04]}
18... Nb4 {[%clk 0:01:53]} 19. Nb3 {[%clk 0:00:58.6]} 19... Bc6 {[%clk 0:01:11]}
20. a3 {[%clk 0:00:57.4]} 20... Bxg2 {[%clk 0:01:10.6]} 21. Kxg2 {[%clk
0:00:58.3]} 21... Nc6 {[%clk 0:01:10.7]} 22. Bd2 {[%clk 0:00:47.5]} 22... e6
{[%clk 0:01:09.1]} 23. Be1 {[%clk 0:00:43.5]} 23... Rfd8 {[%clk 0:01:01.5]} 24.
Rc2 {[%clk 0:00:40.4]} 24... d5 {[%clk 0:00:53.9]} 25. cxd5 {[%clk 0:00:39.5]}
25... Nxd5 {[%clk 0:00:54.8]} 26. Ne2 {[%clk 0:00:31]} 26... Nde7 {[%clk
0:00:16.2]} 27. Rc4 {[%clk 0:00:27.8]} 27... Ne5 {[%clk 0:00:16.1]} 28. Rc3
{[%clk 0:00:19.8]} 28... Nd5 {[%clk 0:00:15.8]} 29. Rcc1 {[%clk 0:00:15.4]}
29... h5 {[%clk 0:00:14.3]} 30. d4 {[%clk 0:00:14.8]} 30... Nf3 {[%clk
0:00:12.4]} 31. dxc5 {[%clk 0:00:14.2]} 31... Bxb2 {[%clk 0:00:12.2]} 32. Rb1
{[%clk 0:00:13.1]} 32... Bxa3 {[%clk 0:00:12.3]} 33. cxb6 {[%clk 0:00:13.6]}
33... axb6 {[%clk 0:00:13.2]} 34. Nbd4 {[%clk 0:00:14.1]} 34... Bc5 {[%clk
0:00:13.1]} 35. Nb3 {[%clk 0:00:11.9]} 35... Bxe3 {[%clk 0:00:12.7]} 36. Rxd5
{[%clk 0:00:11.3]} 36... Rxd5 {[%clk 0:00:12.4]} 37. fxe3 {[%clk 0:00:12.2]}
37... Rc2 {[%clk 0:00:12.9]} 38. Nd4 {[%clk 0:00:12.7]} 38... Rxd4 {[%clk
0:00:12.9]} 39. exd4 {[%clk 0:00:13.6]} 39... Rxe2+ {[%clk 0:00:13.4]} 40. Kf1
{[%clk 0:00:14.5]} 40... Rxe1+ {[%clk 0:00:12.9]} 41. Rxe1 {[%clk 0:00:14.3]}
41... Nxe1 {[%clk 0:00:13.8]} 42. Kxe1 {[%clk 0:00:15.2]} 42... Kf8 {[%clk
0:00:14.4]} 43. Kd2 {[%clk 0:00:15.9]} 43... Ke7 {[%clk 0:00:15.1]} 44. Kc3
{[%clk 0:00:16.1]} 44... Kd6 {[%clk 0:00:15.6]} 45. Kc4 {[%clk 0:00:17]} 45...
Kc6 {[%clk 0:00:16]} 46. Kd3 {[%clk 0:00:17]} 46... b5 {[%clk 0:00:16.9]} 47.
Ke4 {[%clk 0:00:17.9]} 47... b4 {[%clk 0:00:17]} 48. Kd3 {[%clk 0:00:18.6]}
48... Kd5 {[%clk 0:00:17.9]} 0-1

[Event "Late-Titled-Tuesday-Blitz-April-30-2024"]
[Site "Chess.com"]
[Date "2024.04.30"]
[Round "1"]
[White "TheAlienParty"]
[Black "DuleMudule"]
[Result "1/2-1/2"]
[WhiteElo "2448"]
[BlackElo "2781"]
[TimeControl "180+1"]
[EndTime "14:07:26 PDT"]
[Termination "Game drawn by repetition"]

1. c4 {[%clk 0:02:54.5]} 1... e5 {[%clk 0:02:59.6]} 2. Nc3 {[%clk 0:02:54.1]}
2... Nc6 {[%clk 0:03:00.2]} 3. Nf3 {[%clk 0:02:53.2]} 3... g6 {[%clk 0:03:00.1]}
4. d4 {[%clk 0:02:52.5]} 4... exd4 {[%clk 0:03:01]} 5. Nxd4 {[%clk 0:02:52.3]}
5... Bg7 {[%clk 0:03:01.5]} 6. Nc2 {[%clk 0:02:52.4]} 6... Nge7 {[%clk
0:02:58.8]} 7. g3 {[%clk 0:02:52.4]} 7... O-O {[%clk 0:02:56.8]} 8. Bg2 {[%clk
0:02:52.5]} 8... d6 {[%clk 0:02:57.5]} 9. O-O {[%clk 0:02:52.4]} 9... Be6 {[%clk
0:02:57.2]} 10. Ne3 {[%clk 0:02:49]} 10... Qd7 {[%clk 0:02:55.9]} 11. Ncd5
{[%clk 0:02:46.6]} 11... Rac8 {[%clk 0:02:47.9]} 12. Rb1 {[%clk 0:02:40.6]}
12... Bh3 {[%clk 0:02:44.8]} 13. b4 {[%clk 0:02:37]} 13... Bxg2 {[%clk 0:02:44]}
14. Kxg2 {[%clk 0:02:36.7]} 14... Nxd5 {[%clk 0:02:44.2]} 15. Nxd5 {[%clk
0:02:29.5]} 15... Ne5 {[%clk 0:02:43.5]} 16. Bb2 {[%clk 0:02:18.2]} 16... c6
{[%clk 0:02:19.7]} 17. Bxe5 {[%clk 0:02:09]} 17... Bxe5 {[%clk 0:02:16.4]} 18.
Ne3 {[%clk 0:01:50.8]} 18... Rfe8 {[%clk 0:02:14.9]} 19. Qd3 {[%clk 0:01:47.3]}
19... Rcd8 {[%clk 0:02:13]} 20. b5 {[%clk 0:01:46.5]} 20... f5 {[%clk
0:02:07.1]} 21. f4 {[%clk 0:01:19.1]} 21... Bf6 {[%clk 0:02:04.4]} 22. Rb3
{[%clk 0:01:17.6]} 22... Re6 {[%clk 0:01:55.4]} 23. Rf2 {[%clk 0:01:16.8]} 23...
Rde8 {[%clk 0:01:54.1]} 24. Nc2 {[%clk 0:01:11]} 24... Re4 {[%clk 0:01:53.3]}
25. a4 {[%clk 0:01:06.5]} 25... Qe6 {[%clk 0:01:52.1]} 26. bxc6 {[%clk
0:00:58.7]} 26... bxc6 {[%clk 0:01:51.7]} 27. Rb7 {[%clk 0:00:58]} 27... a5
{[%clk 0:01:40.6]} 28. Ra7 {[%clk 0:00:54.9]} 28... Rxc4 {[%clk 0:01:30.3]} 29.
Rxa5 {[%clk 0:00:53.4]} 29... Qe4+ {[%clk 0:01:29.6]} 30. Kh3 {[%clk 0:00:46.4]}
30... Rxa4 {[%clk 0:00:59.7]} 31. Rxa4 {[%clk 0:00:39.8]} 31... Qxa4 {[%clk
0:01:00.6]} 32. Qxd6 {[%clk 0:00:37.9]} 32... Kg7 {[%clk 0:01:00.9]} 33. Nb4
{[%clk 0:00:31.3]} 33... Be7 {[%clk 0:00:39]} 34. Qxc6 {[%clk 0:00:27.1]} 34...
Qxc6 {[%clk 0:00:36.2]} 35. Nxc6 {[%clk 0:00:26.9]} 35... Bc5 {[%clk 0:00:36.8]}
36. Rf1 {[%clk 0:00:20.3]} 36... Rxe2 {[%clk 0:00:35.1]} 37. Rc1 {[%clk
0:00:20.9]} 37... Be3 {[%clk 0:00:33.9]} 38. Rd1 {[%clk 0:00:21.1]} 38... h6
{[%clk 0:00:31.9]} 39. Rd7+ {[%clk 0:00:20.7]} 39... Kf8 {[%clk 0:00:30.7]} 40.
Ne5 {[%clk 0:00:20.2]} 40... g5 {[%clk 0:00:30.3]} 41. fxg5 {[%clk 0:00:19.5]}
41... hxg5 {[%clk 0:00:31.2]} 42. Rf7+ {[%clk 0:00:16.5]} 42... Kg8 {[%clk
0:00:27.5]} 43. Rxf5 {[%clk 0:00:17.4]} 43... Kg7 {[%clk 0:00:27.4]} 44. Rf7+
{[%clk 0:00:16.6]} 44... Kg8 {[%clk 0:00:25.8]} 45. Rf5 {[%clk 0:00:16.6]} 45...
Kg7 {[%clk 0:00:22.6]} 46. Rf7+ {[%clk 0:00:16.2]} 46... Kg8 {[%clk 0:00:20.1]}
47. Rf5 {[%clk 0:00:16.1]} 1/2-1/2

[Event "Late-Titled-Tuesday-Blitz-April-30-2024"]
[Site "Chess.com"]
[Date "2024.04.30"]
[Round "1"]
[White "LuisFSiles"]
[Black "nekotyanof"]
[Result "1-0"]
[WhiteElo "2431"]
[BlackElo "2700"]
[TimeControl "180+1"]
[EndTime "14:07:27 PDT"]
[Termination "LuisFSiles won by checkmate"]

1. e4 {[%clk 0:03:00.9]} 1... c5 {[%clk 0:02:59.9]} 2. Nf3 {[%clk 0:03:00.6]}
2... Nc6 {[%clk 0:02:51.6]} 3. c3 {[%clk 0:02:59.6]} 3... Nf6 {[%clk 0:02:51.4]}
4. e5 {[%clk 0:02:59.9]} 4... Nd5 {[%clk 0:02:51.9]} 5. d4 {[%clk 0:03:00.4]}
5... d6 {[%clk 0:02:50.5]} 6. exd6 {[%clk 0:02:53.5]} 6... cxd4 {[%clk
0:02:46.5]} 7. cxd4 {[%clk 0:02:48.5]} 7... e6 {[%clk 0:02:45.3]} 8. Nc3 {[%clk
0:02:48.2]} 8... Nxc3 {[%clk 0:02:42.8]} 9. bxc3 {[%clk 0:02:49.1]} 9... Bxd6
{[%clk 0:02:41.8]} 10. Bd3 {[%clk 0:02:48.8]} 10... g6 {[%clk 0:02:30.7]} 11.
Bh6 {[%clk 0:02:44]} 11... Bd7 {[%clk 0:02:22]} 12. O-O {[%clk 0:02:37.1]} 12...
Qa5 {[%clk 0:02:20.3]} 13. Rb1 {[%clk 0:02:13.2]} 13... Rb8 {[%clk 0:02:13.1]}
14. Re1 {[%clk 0:01:50.9]} 14... Ne7 {[%clk 0:02:00.9]} 15. c4 {[%clk
0:01:46.3]} 15... Qh5 {[%clk 0:01:26.8]} 16. Bg7 {[%clk 0:01:32.4]} 16... Rg8
{[%clk 0:01:25.7]} 17. Be5 {[%clk 0:01:32.4]} 17... Bxe5 {[%clk 0:01:18.9]} 18.
Rxe5 {[%clk 0:01:33.3]} 18... g5 {[%clk 0:01:15.7]} 19. d5 {[%clk 0:01:32.7]}
19... f6 {[%clk 0:01:08.2]} 20. dxe6 {[%clk 0:01:28.1]} 20... Bc6 {[%clk
0:01:04.6]} 21. Be4 {[%clk 0:01:15.9]} 21... fxe5 {[%clk 0:00:48.1]} 22. Bxc6+
{[%clk 0:01:12.5]} 22... Nxc6 {[%clk 0:00:49]} 23. Qd7+ {[%clk 0:01:10.6]} 23...
Kf8 {[%clk 0:00:49.5]} 24. Nxe5 {[%clk 0:00:48.8]} 24... Nxe5 {[%clk 0:00:44.5]}
25. e7+ {[%clk 0:00:47.3]} 25... Kg7 {[%clk 0:00:41]} 26. e8=Q+ {[%clk
0:00:21.4]} 26... Nf7 {[%clk 0:00:40.3]} 27. Qe5+ {[%clk 0:00:17.7]} 27... Kh6
{[%clk 0:00:29.7]} 28. Qde6+ {[%clk 0:00:17.5]} 28... Qg6 {[%clk 0:00:26.2]} 29.
Qh3+ {[%clk 0:00:17]} 29... Qh5 {[%clk 0:00:25.2]} 30. Qf6+ {[%clk 0:00:16.6]}
30... Rg6 {[%clk 0:00:25.4]} 31. Qxf7 {[%clk 0:00:15.5]} 31... Qxh3 {[%clk
0:00:23.7]} 32. gxh3 {[%clk 0:00:16.4]} 32... b6 {[%clk 0:00:15.9]} 33. Rd1
{[%clk 0:00:14.6]} 33... Rbg8 {[%clk 0:00:10.5]} 34. Rd7 {[%clk 0:00:13.1]}
34... R8g7 {[%clk 0:00:10.6]} 35. Qf8 {[%clk 0:00:12.9]} 35... g4 {[%clk
0:00:09.9]} 36. h4 {[%clk 0:00:12.8]} 36... a6 {[%clk 0:00:08.6]} 37. a4 {[%clk
0:00:12.7]} 37... a5 {[%clk 0:00:08.4]} 38. Kg2 {[%clk 0:00:12.2]} 38... b5
{[%clk 0:00:06]} 39. cxb5 {[%clk 0:00:11.7]} 39... Kh5 {[%clk 0:00:05.3]} 40.
Rxg7 {[%clk 0:00:10.1]} 40... Rxg7 {[%clk 0:00:05.8]} 41. Qxg7 {[%clk
0:00:09.1]} 41... g3 {[%clk 0:00:06.5]} 42. Qg5# {[%clk 0:00:09]} 1-0

[Event "Late-Titled-Tuesday-Blitz-April-30-2024"]
[Site "Chess.com"]
[Date "2024.04.30"]
[Round "1"]
[White "HajiyevKanan"]
[Black "KebabJangles"]
[Result "0-1"]
[WhiteElo "2607"]
[BlackElo "2317"]
[TimeControl "180+1"]
[EndTime "14:07:27 PDT"]
[Termination "KebabJangles won by checkmate"]

1. d4 {[%clk 0:02:59.8]} 1... Nf6 {[%clk 0:02:59.1]} 2. Nf3 {[%clk 0:02:59.5]}
2... g6 {[%clk 0:02:58.5]} 3. e3 {[%clk 0:03:00.1]} 3... Bg7 {[%clk 0:02:42.6]}
4. Be2 {[%clk 0:03:01]} 4... O-O {[%clk 0:02:41]} 5. O-O {[%clk 0:03:01.9]} 5...
d6 {[%clk 0:02:40.8]} 6. b3 {[%clk 0:03:02.7]} 6... c5 {[%clk 0:02:39.3]} 7. Bb2
{[%clk 0:03:02.5]} 7... Nbd7 {[%clk 0:02:35.5]} 8. c4 {[%clk 0:03:02.5]} 8... b6
{[%clk 0:02:34.8]} 9. Nc3 {[%clk 0:03:02.6]} 9... Bb7 {[%clk 0:02:34.3]} 10. d5
{[%clk 0:03:03.3]} 10... Re8 {[%clk 0:02:32]} 11. e4 {[%clk 0:03:03.6]} 11... e6
{[%clk 0:02:30.9]} 12. dxe6 {[%clk 0:03:03.5]} 12... Rxe6 {[%clk 0:02:30.7]} 13.
Ng5 {[%clk 0:03:02.3]} 13... Re8 {[%clk 0:02:19.9]} 14. Qxd6 {[%clk 0:03:00.8]}
14... Nxe4 {[%clk 0:02:18.3]} 15. Ngxe4 {[%clk 0:03:00.9]} 15... Bxe4 {[%clk
0:02:18]} 16. Rad1 {[%clk 0:03:01.2]} 16... Nf6 {[%clk 0:02:17.4]} 17. Qf4
{[%clk 0:02:47.8]} 17... Qe7 {[%clk 0:02:11.2]} 18. Nxe4 {[%clk 0:02:45.3]}
18... Qxe4 {[%clk 0:02:09.9]} 19. Qxe4 {[%clk 0:02:38.3]} 19... Nxe4 {[%clk
0:02:10]} 20. Bxg7 {[%clk 0:02:36]} 20... Kxg7 {[%clk 0:02:10.9]} 21. Bf3 {[%clk
0:02:36.5]} 21... Re7 {[%clk 0:02:03.7]} 22. Rfe1 {[%clk 0:02:31.8]} 22... Rae8
{[%clk 0:02:02.6]} 23. h4 {[%clk 0:02:26.9]} 23... Nf6 {[%clk 0:01:56.4]} 24.
Rxe7 {[%clk 0:02:24.5]} 24... Rxe7 {[%clk 0:01:57.3]} 25. g4 {[%clk 0:02:17.9]}
25... Rd7 {[%clk 0:01:52.7]} 26. Rxd7 {[%clk 0:02:00.1]} 26... Nxd7 {[%clk
0:01:50.8]} 27. g5 {[%clk 0:01:59.6]} 27... h6 {[%clk 0:01:49.3]} 28. Kg2 {[%clk
0:01:56.3]} 28... hxg5 {[%clk 0:01:49.1]} 29. hxg5 {[%clk 0:01:57.2]} 29... f6
{[%clk 0:01:50]} 30. gxf6+ {[%clk 0:01:50.5]} 30... Kxf6 {[%clk 0:01:50.9]} 31.
Kg3 {[%clk 0:01:50.2]} 31... Kf5 {[%clk 0:01:51.4]} 32. Be2 {[%clk 0:01:46.5]}
32... Nf6 {[%clk 0:01:48.8]} 33. Bd3+ {[%clk 0:01:46.2]} 33... Kg5 {[%clk
0:01:47.6]} 34. f4+ {[%clk 0:01:46.5]} 34... Kh5 {[%clk 0:01:47.9]} 35. Kf3
{[%clk 0:01:44.3]} 35... g5 {[%clk 0:01:47.2]} 36. Bf5 {[%clk 0:01:28.1]} 36...
Kh4 {[%clk 0:01:42.3]} 37. fxg5 {[%clk 0:01:19.6]} 37... Kxg5 {[%clk 0:01:43.2]}
38. Be6 {[%clk 0:01:17.1]} 38... a5 {[%clk 0:01:24]} 39. Ke3 {[%clk 0:01:16.3]}
39... Ne8 {[%clk 0:01:12.4]} 40. Ke4 {[%clk 0:01:15.1]} 40... Kf6 {[%clk
0:01:12.5]} 41. Kd5 {[%clk 0:01:01.4]} 41... Nc7+ {[%clk 0:01:11.2]} 42. Kc6
{[%clk 0:01:01.9]} 42... Nxe6 {[%clk 0:01:12.1]} 43. Kxb6 {[%clk 0:01:02.5]}
43... Ke7 {[%clk 0:01:12]} 44. Kxa5 {[%clk 0:01:02.6]} 44... Kd6 {[%clk
0:01:03.8]} 45. Kb6 {[%clk 0:01:03.1]} 45... Nd4 {[%clk 0:00:56.7]} 46. a4
{[%clk 0:00:47.9]} 46... Nxb3 {[%clk 0:00:56.1]} 47. a5 {[%clk 0:00:48.5]} 47...
Nd2 {[%clk 0:00:35.8]} 48. a6 {[%clk 0:00:47.2]} 48... Nxc4+ {[%clk 0:00:35.9]}
49. Kb7 {[%clk 0:00:47.9]} 49... Na5+ {[%clk 0:00:35.3]} 50. Kb6 {[%clk
0:00:40.8]} 50... Nc6 {[%clk 0:00:36.2]} 51. Kb5 {[%clk 0:00:41.4]} 51... Kd5
{[%clk 0:00:35]} 52. Ka4 {[%clk 0:00:36]} 52... c4 {[%clk 0:00:34.1]} 53. Ka3
{[%clk 0:00:35.9]} 53... Kd4 {[%clk 0:00:32.9]} 54. Kb2 {[%clk 0:00:36.4]} 54...
Kd3 {[%clk 0:00:33.2]} 55. Kc1 {[%clk 0:00:36.8]} 55... Kc3 {[%clk 0:00:33.1]}
56. Kb1 {[%clk 0:00:37.1]} 56... Kd2 {[%clk 0:00:32.9]} 57. Ka2 {[%clk
0:00:35.1]} 57... Na7 {[%clk 0:00:31.8]} 58. Ka3 {[%clk 0:00:33.7]} 58... c3
{[%clk 0:00:32.7]} 59. Kb4 {[%clk 0:00:33.3]} 59... c2 {[%clk 0:00:33.6]} 60.
Ka5 {[%clk 0:00:34.1]} 60... c1=Q {[%clk 0:00:34.5]} 61. Kb6 {[%clk 0:00:35]}
61... Nc8+ {[%clk 0:00:32.9]} 62. Kb7 {[%clk 0:00:35.4]} 62... Nd6+ {[%clk
0:00:33.3]} 63. Ka8 {[%clk 0:00:35.2]} 63... Qc6+ {[%clk 0:00:32.2]} 64. Ka7
{[%clk 0:00:34.8]} 64... Qc7+ {[%clk 0:00:30.5]} 65. Ka8 {[%clk 0:00:35.1]}
65... Nb5 {[%clk 0:00:31.1]} 66. a7 {[%clk 0:00:33.9]} 66... Qxa7# {[%clk
0:00:32]} 0-1

[Event "Late-Titled-Tuesday-Blitz-April-30-2024"]
[Site "Chess.com"]
[Date "2024.04.30"]
[Round "1"]
[White "Individoom"]
[Black "Heydarli77"]
[Result "0-1"]
[WhiteElo "2778"]
[BlackElo "2456"]
[TimeControl "180+1"]
[EndTime "14:07:28 PDT"]
[Termination "Heydarli77 won by checkmate"]

1. d4 {[%clk 0:02:59.4]} 1... d5 {[%clk 0:02:58.8]} 2. Nf3 {[%clk 0:02:58.9]}
2... Nf6 {[%clk 0:02:57.5]} 3. Bf4 {[%clk 0:02:59.4]} 3... Bf5 {[%clk
0:02:56.4]} 4. e3 {[%clk 0:02:58.7]} 4... e6 {[%clk 0:02:56.3]} 5. c4 {[%clk
0:02:58.8]} 5... Bxb1 {[%clk 0:02:55.3]} 6. Qxb1 {[%clk 0:02:59.7]} 6... Bb4+
{[%clk 0:02:54.6]} 7. Kd1 {[%clk 0:02:59.9]} 7... O-O {[%clk 0:02:51.5]} 8. c5
{[%clk 0:02:51.9]} 8... c6 {[%clk 0:02:51]} 9. Bd6 {[%clk 0:02:47.9]} 9... Re8
{[%clk 0:02:49.5]} 10. Bd3 {[%clk 0:02:47.6]} 10... Ba5 {[%clk 0:02:47.9]} 11.
Ne5 {[%clk 0:02:38.3]} 11... Bc7 {[%clk 0:02:45]} 12. Bxc7 {[%clk 0:02:37.3]}
12... Qxc7 {[%clk 0:02:44.7]} 13. f4 {[%clk 0:02:35.8]} 13... Nbd7 {[%clk
0:02:44.1]} 14. Ke2 {[%clk 0:02:29.8]} 14... b6 {[%clk 0:02:44.1]} 15. cxb6
{[%clk 0:02:24]} 15... axb6 {[%clk 0:02:43.7]} 16. Qc2 {[%clk 0:02:23.3]} 16...
c5 {[%clk 0:02:43.4]} 17. Bb5 {[%clk 0:02:21.2]} 17... Rec8 {[%clk 0:02:41.1]}
18. Rhc1 {[%clk 0:02:18.4]} 18... Nxe5 {[%clk 0:02:39]} 19. fxe5 {[%clk
0:02:16.3]} 19... Ne4 {[%clk 0:02:39]} 20. Bd3 {[%clk 0:02:14.1]} 20... Qb7
{[%clk 0:02:38]} 21. Qd1 {[%clk 0:01:58.1]} 21... f5 {[%clk 0:02:36.3]} 22. a3
{[%clk 0:01:54]} 22... cxd4 {[%clk 0:02:33.3]} 23. exd4 {[%clk 0:01:52.8]} 23...
Qf7 {[%clk 0:02:33.1]} 24. Kf1 {[%clk 0:01:47.5]} 24... Qg6 {[%clk 0:02:28.5]}
25. Rxc8+ {[%clk 0:01:44.6]} 25... Rxc8 {[%clk 0:02:27.9]} 26. Rc1 {[%clk
0:01:45.2]} 26... Rf8 {[%clk 0:02:16.3]} 27. Kg1 {[%clk 0:01:36.3]} 27... Qh6
{[%clk 0:02:14.8]} 28. Qe1 {[%clk 0:01:34.8]} 28... Qf4 {[%clk 0:02:10.6]} 29.
Rc2 {[%clk 0:01:28.8]} 29... Ng5 {[%clk 0:02:08.8]} 30. Qf2 {[%clk 0:01:15.4]}
30... Qg4 {[%clk 0:02:08.5]} 31. Kh1 {[%clk 0:01:15.4]} 31... Qd1+ {[%clk
0:02:07.2]} 32. Qf1 {[%clk 0:01:14.8]} 32... Qg4 {[%clk 0:02:01.8]} 33. Qg1
{[%clk 0:01:01.5]} 33... h6 {[%clk 0:01:52.5]} 34. Rc3 {[%clk 0:00:55.9]} 34...
Qf4 {[%clk 0:01:45.9]} 35. Rc2 {[%clk 0:00:43.1]} 35... Rf7 {[%clk 0:01:38.8]}
36. a4 {[%clk 0:00:38]} 36... Ne4 {[%clk 0:01:36.5]} 37. b4 {[%clk 0:00:34.8]}
37... Ra7 {[%clk 0:01:34]} 38. Bb5 {[%clk 0:00:33.2]} 38... Qh4 {[%clk
0:01:28.8]} 39. g3 {[%clk 0:00:31]} 39... Qg4 {[%clk 0:01:23.2]} 40. Kg2 {[%clk
0:00:30.5]} 40... Ng5 {[%clk 0:01:18.2]} 41. Qe3 {[%clk 0:00:21.8]} 41... Qd1
{[%clk 0:01:16.4]} 42. Rf2 {[%clk 0:00:17.9]} 42... Ne4 {[%clk 0:01:14.2]} 43.
Re2 {[%clk 0:00:16.8]} 43... Nc3 {[%clk 0:01:09.9]} 44. Rd2 {[%clk 0:00:16.8]}
44... Qc1 {[%clk 0:01:06.1]} 45. Rd3 {[%clk 0:00:09.7]} 45... Qb2+ {[%clk
0:01:02.3]} 46. Rd2 {[%clk 0:00:08.6]} 46... Qxb4 {[%clk 0:01:01.3]} 47. Rc2
{[%clk 0:00:08.1]} 47... Nxb5 {[%clk 0:00:59.4]} 48. axb5 {[%clk 0:00:06.8]}
48... Qxb5 {[%clk 0:00:59.5]} 49. g4 {[%clk 0:00:06]} 49... Ra1 {[%clk
0:00:55.1]} 50. gxf5 {[%clk 0:00:04.6]} 50... Qf1+ {[%clk 0:00:53.6]} 51. Kg3
{[%clk 0:00:05]} 51... Qxf5 {[%clk 0:00:53]} 52. Rf2 {[%clk 0:00:04.2]} 52...
Rg1+ {[%clk 0:00:51]} 53. Kh4 {[%clk 0:00:01.4]} 53... Qg4# {[%clk 0:00:47.1]}
0-1